fUSD/lending_fUSD_20250219
["ID","MTS","AMOUNT","RATE_DAILY","PERIOD"]
[353682913,1739988651658,-500.0,0.00011204,2]
[353682915,1739988651674,-500.0,0.00011204,2]
[353682917,1739988651683,-500.0,0.00011204,2]
[353682919,1739988651693,-500.0,0.00011204,2]
[353682921,1739988651705,-500.0,0.00011204,2]
[353682923,1739988651717,-500.0,0.00011204,2]
[353682925,1739988651728,-500.0,0.00011204,2]
[353682927,1739988651739,-500.0,0.00011204,2]
[353682929,1739988651752,-624.18,0.00011204,2]
[353682931,1739988651762,-506.02,0.00011204,2]
[353682933,1739988651772,-591.17,0.00011204,2]
[353682935,1739988651782,-500.0,0.00011204,2]
[353682937,1739988651793,-635.57,0.00011204,2]
[353682939,1739988651804,-500.0,0.00011204,2]
[353682941,1739988651814,-623.89886846,0.00011204,2]
[353682943,1739988651824,-500.0,0.00011204,2]
[353682945,1739988651835,-500.0,0.00011204,2]
[353682947,1739988651845,-500.0,0.00011204,2]
[353682949,1739988651855,-500.0,0.00011204,2]
[353682950,1739988651864,-612.61,0.00011204,2]
[353682953,1739988651874,-500.0,0.00011204,2]
[353682954,1739988651884,-386.93085157,0.00011204,2]
[353682956,1739988651893,-500.0,0.00011204,2]
[353682958,1739988651903,-367.56634373,0.00011204,2]
[353682960,1739988651914,-998.34,0.00011204,2]
[353682962,1739988651925,-500.0,0.00011204,2]
[353682964,1739988651936,-1915.46,0.00011204,2]
[353682966,1739988651946,-500.0,0.00011204,2]
[353682968,1739988651958,-500.0,0.00011204,2]
[353682970,1739988651968,-500.0,0.00011204,2]
[353682972,1739988651978,-500.0,0.00011204,2]
[353682974,1739988651990,-500.0,0.00011204,2]
[353682976,1739988651999,-517.17,0.00011204,2]
[353682978,1739988652010,-500.0,0.00011204,2]
[353682980,1739988652020,-509.55,0.00011204,2]
[353682982,1739988652030,-500.0,0.00011204,2]
[353682984,1739988652042,-500.0,0.00011204,2]
[353682986,1739988652052,-566.40084152,0.00011204,2]
[353682988,1739988652062,-500.0,0.00011204,2]
[353682990,1739988652072,-500.0,0.00011204,2]
[353682992,1739988652082,-571.85,0.00011204,2]
[353682994,1739988652092,-708.48,0.00011204,2]
[353682996,1739988652102,-568.42,0.00011204,2]
[353682998,1739988652115,-500.0,0.00011204,2]
[353683000,1739988652125,-754.41,0.00011204,2]
[353683002,1739988652136,-724.44,0.00011204,2]
[353683004,1739988652146,-500.0,0.00011204,2]
[353683006,1739988652156,-562.77,0.00011204,2]
[353683008,1739988652169,-500.0,0.00011204,2]
[353683010,1739988652180,-500.0,0.00011204,2]
[353683012,1739988652192,-500.0,0.00011204,2]
[353683014,1739988652202,-500.0,0.00011204,2]
[353683016,1739988652213,-500.0,0.00011204,2]
[353683018,1739988652223,-500.0,0.00011204,2]
[353683020,1739988652233,-500.0,0.00011204,2]
[353683022,1739988652243,-620.56,0.00011204,2]
[353683024,1739988652253,-654.06,0.00011204,2]
[353683026,1739988652263,-500.0,0.00011204,2]
[353683028,1739988652273,-1319.71,0.00011204,2]
[353683030,1739988652283,-500.0,0.00011204,2]
[353683032,1739988652293,-577.87,0.00011204,2]
[353683034,1739988652303,-500.0,0.00011204,2]
[353683036,1739988652313,-626.85,0.00011204,2]
[353683038,1739988652323,-565.5,0.00011204,2]
[353683040,1739988652334,-500.0,0.00011204,2]
[353683042,1739988652344,-500.0,0.00011204,2]
[353683044,1739988652354,-500.0,0.00011204,2]
[353683046,1739988652364,-500.0,0.00011204,2]
[353683048,1739988652373,-519.09,0.00011204,2]
[353683050,1739988652384,-765.76,0.00011204,2]
[353683052,1739988652394,-500.0,0.00011204,2]
[353683054,1739988652404,-500.0,0.00011204,2]
[353683056,1739988652416,-584.72,0.00011204,2]
[353683058,1739988652427,-500.0,0.00011204,2]
[353683060,1739988652436,-500.0,0.00011204,2]
[353683062,1739988652447,-500.0,0.00011204,2]
[353683064,1739988652457,-500.0,0.00011204,2]
[353683066,1739988652467,-500.0,0.00011204,2]
[353683068,1739988652477,-500.0,0.00011204,2]
[353683070,1739988652487,-500.0,0.00011204,2]
[353683071,1739988652497,-500.0,0.00011204,2]
[353683073,1739988652507,-768.25,0.00011204,2]
[353683075,1739988652517,-628.09,0.00011204,2]
[353683077,1739988652527,-500.0,0.00011204,2]
[353683079,1739988652536,-656.68,0.00011204,2]
[353683081,1739988652545,-500.0,0.00011204,2]
[353683083,1739988652555,-500.0,0.00011204,2]
[353683085,1739988652565,-500.0,0.00011204,2]
[353683087,1739988652575,-500.0,0.00011204,2]
[353683089,1739988652584,-500.0,0.00011204,2]
[353683091,1739988652594,-817.71,0.00011204,2]
[353683093,1739988652604,-845.13,0.00011204,2]
[353683095,1739988652614,-500.0,0.00011204,2]
[353683097,1739988652624,-500.0,0.00011204,2]
[353683099,1739988652634,-677.61,0.00011204,2]
[353683101,1739988652645,-500.0,0.00011204,2]
[353683103,1739988652657,-500.0,0.00011204,2]
[353683105,1739988652667,-334.13067392,0.00011204,2]
[353683107,1739988652677,-1000.0,0.00011204,2]
[353683109,1739988652686,-800.78,0.00011204,2]
[353683111,1739988652698,-515.31,0.00011204,2]
[353683113,1739988652708,-500.0,0.00011204,2]
[353683116,1739988652718,-500.0,0.00011204,2]
[353683118,1739988652729,-500.0,0.00011204,2]
[353683120,1739988652739,-500.0,0.00011204,2]
[353683122,1739988652749,-534.41,0.00011204,2]
[353683124,1739988652758,-567.23,0.00011204,2]
[353683126,1739988652768,-799.63,0.00011204,2]
[353683127,1739988652778,-500.0,0.00011204,2]
[353683130,1739988652791,-672.01,0.00011204,2]
[353683132,1739988652801,-500.0,0.00011204,2]
[353683134,1739988652810,-500.0,0.00011204,2]
[353683136,1739988652820,-611.05,0.00011204,2]
[353683138,1739988652830,-500.0,0.00011204,2]
[353683140,1739988652840,-500.0,0.00011204,2]
[353683142,1739988652850,-572.16,0.00011204,2]
[353683144,1739988652860,-500.0,0.00011204,2]
[353683146,1739988652869,-926.93,0.00011204,2]
[353683148,1739988652878,-154.7188057,0.00011204,2]
[353683316,1739988654651,-500.0,0.00011038,2]
[353683318,1739988654666,-587.92,0.00011038,2]
[353683320,1739988654677,-0.08,0.00011039,2]
[353683323,1739988654698,-706.47,0.00011039,2]
[353683325,1739988654709,-500.0,0.00011039,2]
[353683327,1739988654718,-105.78652335,0.0001104,2]
[353683329,1739988654745,-394.21347665,0.0001104,2]
[353683330,1739988654756,-500.0,0.0001112,2]
[353683331,1739988654767,-706.55,0.00011121,2]
[353683332,1739988654777,-500.0,0.00011123,2]
[353683333,1739988654787,-159.55,0.00011203,2]
[353683334,1739988654798,-365.4311943,0.00011204,2]
[353683336,1739988654807,-500.0,0.00011204,2]
[353683338,1739988654817,-452.4970622,0.00011204,2]
[353683393,1739988655349,-47.5029378,0.00011204,2]
[353683396,1739988655359,-326.57183331,0.00011204,2]
[353683398,1739988655371,-173.42816669,0.00011204,2]
[353683400,1739988655381,-261.28664607,0.00011204,2]
[353683404,1739988655414,-238.71335393,0.00011204,2]
[353683406,1739988655424,-500.0,0.00011204,2]
[353683408,1739988655434,-500.0,0.00011204,2]
[353683410,1739988655443,-500.0,0.00011204,2]
[353683412,1739988655453,-761.0,0.00011204,2]
[353683414,1739988655464,-678.3,0.00011204,2]
[353683416,1739988655474,-500.0,0.00011204,2]
[353683418,1739988655483,-500.0,0.00011204,2]
[353683420,1739988655493,-500.0,0.00011204,2]
[353683422,1739988655503,-500.0,0.00011204,2]
[353683424,1739988655512,-706.55,0.00011204,2]
[353683426,1739988655521,-500.0,0.00011205,2]
[353683427,1739988655531,-530.86,0.00011205,2]
[353683429,1739988655540,-500.0,0.00011205,2]
[353683432,1739988655550,-259.93874815,0.00011205,2]
[353683486,1739988656083,-522.8,0.00011038,2]
[353683493,1739988656142,-77.03,0.00011038,2]
[353683495,1739988656151,-805.02,0.00011039,2]
[353683497,1739988656163,-500.0,0.00011039,2]
[353683499,1739988656173,-500.0,0.00011039,2]
[353683501,1739988656184,-805.02,0.00011121,2]
[353683502,1739988656194,-500.0,0.00011121,2]
[353683503,1739988656203,-500.0,0.00011121,2]
[353683504,1739988656213,-805.02,0.00011204,2]
[353683505,1739988656223,-498.94,0.00011204,2]
[353683506,1739988656234,-240.06125185,0.00011205,2]
[353683507,1739988656243,-599.25,0.00011205,2]
[353683509,1739988656253,-500.0,0.00011205,2]
[353683510,1739988656263,-500.0,0.00011205,2]
[353683512,1739988656273,-524.11,0.00011205,2]
[353683514,1739988656282,-719.01,0.00011205,2]
[353683516,1739988656292,-500.0,0.00011205,2]
[353683519,1739988656302,-507.2,0.00011205,2]
[353683520,1739988656312,-731.42,0.00011205,2]
[353683523,1739988656322,-500.0,0.00011205,2]
[353683524,1739988656333,-1313.16,0.00011205,2]
[353683527,1739988656343,-1054.59,0.00011205,2]
[353683528,1739988656354,-696.15,0.00011205,2]
[353683530,1739988656364,-500.0,0.00011205,2]
[353683532,1739988656374,-1221.49,0.00011205,2]
[353683534,1739988656385,-500.0,0.00011205,2]
[353683536,1739988656394,-1347.41,0.00011205,2]
[353683538,1739988656404,-500.0,0.00011205,2]
[353683540,1739988656414,-536.96,0.00011205,2]
[353683542,1739988656425,-723.01,0.00011205,2]
[353683544,1739988656435,-500.0,0.00011205,2]
[353683546,1739988656445,-1482.05,0.00011205,2]
[353683548,1739988656456,-500.0,0.00011205,2]
[353683550,1739988656466,-1042.69,0.00011205,2]
[353683552,1739988656477,-1493.58,0.00011205,2]
[353683554,1739988656487,-500.0,0.00011205,2]
[353683556,1739988656497,-1834.46,0.00011205,2]
[353683558,1739988656507,-670.89,0.00011205,2]
[353683560,1739988656517,-1172.85,0.00011205,2]
[353683562,1739988656527,-500.0,0.00011205,2]
[353683564,1739988656538,-981.72,0.00011205,2]
[353683566,1739988656548,-599.15,0.00011205,2]
[353683568,1739988656558,-500.0,0.00011205,2]
[353683570,1739988656568,-500.0,0.00011205,2]
[353683572,1739988656578,-500.0,0.00011205,2]
[353683574,1739988656588,-664.94,0.00011205,2]
[353683576,1739988656599,-500.0,0.00011205,2]
[353683578,1739988656610,-1902.2,0.00011205,2]
[353683580,1739988656620,-667.95,0.00011205,2]
[353683582,1739988656630,-1193.44,0.00011205,2]
[353683585,1739988656640,-843.11,0.00011205,2]
[353683587,1739988656651,-1781.33,0.00011205,2]
[353683589,1739988656667,-1154.85,0.00011205,2]
[353683591,1739988656678,-729.98,0.00011205,2]
[353683593,1739988656689,-500.0,0.00011205,2]
[353683595,1739988656699,-500.0,0.00011205,2]
[353683597,1739988656711,-622.89,0.00011205,2]
[353683599,1739988656721,-571.48,0.00011205,2]
[353683601,1739988656731,-1889.83,0.00011205,2]
[353683603,1739988656743,-1034.33,0.00011205,2]
[353683605,1739988656754,-1219.07,0.00011205,2]
[353683607,1739988656765,-925.76,0.00011205,2]
[353683609,1739988656775,-927.35,0.00011205,2]
[353683611,1739988656785,-1246.49,0.00011205,2]
[353683614,1739988656794,-716.09,0.00011205,2]
[353683615,1739988656804,-835.81,0.00011205,2]
[353683617,1739988656814,-500.0,0.00011205,2]
[353683619,1739988656825,-500.0,0.00011205,2]
[353683621,1739988656835,-1094.65,0.00011205,2]
[353683623,1739988656845,-939.53,0.00011205,2]
[353683625,1739988656855,-500.0,0.00011205,2]
[353683627,1739988656865,-500.0,0.00011205,2]
[353683629,1739988656875,-500.0,0.00011205,2]
[353683631,1739988656885,-1151.06,0.00011205,2]
[353683633,1739988656895,-500.0,0.00011205,2]
[353683635,1739988656905,-1231.93,0.00011205,2]
[353683637,1739988656917,-525.23,0.00011205,2]
[353683639,1739988656927,-1406.77,0.00011205,2]
[353683641,1739988656937,-500.0,0.00011205,2]
[353683643,1739988656947,-1058.82,0.00011205,2]
[353683645,1739988656957,-521.61,0.00011205,2]
[353683647,1739988656969,-500.0,0.00011205,2]
[353683649,1739988656979,-1234.35,0.00011205,2]
[353683651,1739988656988,-607.6,0.00011205,2]
[353683653,1739988656997,-1001.45,0.00011205,2]
[353683655,1739988657007,-1075.94,0.00011205,2]
[353683657,1739988657017,-1230.37,0.00011205,2]
[353683659,1739988657028,-500.0,0.00011205,2]
[353683661,1739988657039,-735.79,0.00011205,2]
[353683663,1739988657049,-500.0,0.00011205,2]
[353683665,1739988657059,-848.44,0.00011205,2]
[353683667,1739988657069,-658.99,0.00011205,2]
[353683669,1739988657079,-1012.24,0.00011205,2]
[353683671,1739988657089,-610.6,0.00011205,2]
[353683673,1739988657099,-818.28,0.00011205,2]
[353683675,1739988657109,-984.86,0.00011205,2]
[353683677,1739988657118,-531.86,0.00011205,2]
[353683679,1739988657128,-664.18,0.00011205,2]
[353683681,1739988657138,-742.75,0.00011205,2]
[353683683,1739988657149,-500.0,0.00011205,2]
[353683685,1739988657159,-514.63,0.00011205,2]
[353683687,1739988657169,-500.0,0.00011205,2]
[353683689,1739988657180,-500.0,0.00011205,2]
[353683691,1739988657190,-500.0,0.00011205,2]
[353683693,1739988657200,-850.62,0.00011205,2]
[353683695,1739988657210,-874.47,0.00011205,2]
[353683697,1739988657220,-500.0,0.00011205,2]
[353683699,1739988657230,-957.29,0.00011205,2]
[353683701,1739988657239,-500.0,0.00011205,2]
[353683703,1739988657249,-150.0,0.00011234,2]
[353683705,1739988657258,-728.90947533,0.00011242,2]
[353683707,1739988657268,-150.80011451,0.00011273,2]
[353683709,1739988657279,-500.0,0.00011273,2]
[353683711,1739988657288,-150.0,0.00011282,2]
[353683713,1739988657297,-152.444038,0.00011285,2]
[353683715,1739988657307,-838.91,0.00011285,2]
[353683716,1739988657317,-500.0,0.00011285,2]
[353683719,1739988657326,-152.814469,0.00011285,2]
[353683720,1739988657335,-500.0,0.00011285,2]
[353683723,1739988657346,-1022.83,0.00011285,2]
[353683725,1739988657356,-1096.04,0.00011285,2]
[353683727,1739988657367,-1654.53,0.00011285,2]
[353683729,1739988657376,-500.0,0.00011285,2]
[353683731,1739988657386,-1897.11,0.00011285,2]
[353683732,1739988657395,-524.17,0.00011285,2]
[353683735,1739988657430,-1131.81,0.00011285,2]
[353683737,1739988657441,-500.0,0.00011285,2]
[353683738,1739988657451,-584.41,0.00011285,2]
[353683740,1739988657461,-6485.61,0.00011285,2]
[353683742,1739988657471,-1242.77,0.00011285,2]
[353683745,1739988657482,-809.82,0.00011285,2]
[353683746,1739988657491,-500.0,0.00011285,2]
[353683748,1739988657501,-1487.15,0.00011285,2]
[353683750,1739988657511,-983.08,0.00011285,2]
[353683753,1739988657522,-779.31,0.00011285,2]
[353683754,1739988657532,-753.06,0.00011285,2]
[353683756,1739988657542,-1261.82,0.00011285,2]
[353683758,1739988657553,-500.0,0.00011285,2]
[353683760,1739988657564,-685.77,0.00011285,2]
[353683762,1739988657576,-659.5,0.00011285,2]
[353683764,1739988657586,-1172.35,0.00011285,2]
[353683766,1739988657595,-500.0,0.00011285,2]
[353683767,1739988657604,-1202.18,0.00011285,2]
[353683768,1739988657614,-827.77,0.00011285,2]
[353683769,1739988657625,-2398.92,0.00011285,2]
[353683774,1739988657704,-500.0,0.00011285,2]
[353683776,1739988657715,-664.23,0.00011285,2]
[353683778,1739988657727,-1834.41,0.00011285,2]
[353683780,1739988657737,-707.39,0.00011285,2]
[353683782,1739988657747,-1086.02,0.00011285,2]
[353683784,1739988657758,-823.33,0.00011285,2]
[353683786,1739988657768,-524.92,0.00011285,2]
[353683789,1739988657778,-1035.1,0.00011285,2]
[353683790,1739988657787,-1229.41,0.00011285,2]
[353683792,1739988657797,-500.0,0.00011285,2]
[353683794,1739988657806,-600.22,0.00011285,2]
[353683796,1739988657816,-500.0,0.00011285,2]
[353683798,1739988657826,-692.48,0.00011285,2]
[353683801,1739988657838,-2332.17,0.00011285,2]
[353683802,1739988657847,-500.0,0.00011285,2]
[353683805,1739988657857,-734.38,0.00011285,2]
[353683807,1739988657868,-636.98,0.00011285,2]
[353683809,1739988657878,-700.29,0.00011285,2]
[353683811,1739988657890,-500.0,0.00011285,2]
[353683813,1739988657900,-733.74,0.00011285,2]
[353683815,1739988657912,-902.66,0.00011285,2]
[353683817,1739988657922,-1046.35,0.00011285,2]
[353683819,1739988657933,-500.0,0.00011286,2]
[353683821,1739988657943,-517.33250392,0.00011286,2]
[353683823,1739988657953,-500.0,0.00011286,2]
[353683825,1739988657963,-792.43,0.00011286,2]
[353683827,1739988657973,-523.5,0.00011286,2]
[353683829,1739988657982,-500.0,0.00011286,2]
[353683831,1739988657995,-1150.97,0.00011286,2]
[353683832,1739988658004,-500.0,0.00011286,2]
[353683834,1739988658014,-500.0,0.00011286,2]
[353683836,1739988658024,-500.0,0.00011286,2]
[353683838,1739988658034,-262.32956849,0.00011286,2]
[353683840,1739988658044,-633.32,0.00011286,2]
[353683842,1739988658053,-500.0,0.00011286,2]
[353683844,1739988658062,-500.0,0.00011286,2]
[353683846,1739988658072,-500.0,0.00011286,2]
[353683848,1739988658082,-500.0,0.00011286,2]
[353683850,1739988658093,-556.41220388,0.00011286,2]
[353683852,1739988658103,-500.0,0.00011286,2]
[353683854,1739988658113,-500.0,0.00011286,2]
[353683856,1739988658123,-500.0,0.00011286,2]
[353683858,1739988658134,-730.07,0.00011286,2]
[353683860,1739988658145,-724.58,0.00011286,2]
[353683862,1739988658156,-500.0,0.00011286,2]
[353683864,1739988658172,-500.0,0.00011286,2]
[353683866,1739988658183,-1088.3,0.00011286,2]
[353683868,1739988658197,-500.0,0.00011286,2]
[353683869,1739988658209,-500.0,0.00011286,2]
[353683871,1739988658220,-927.13,0.00011286,2]
[353683873,1739988658232,-500.0,0.00011286,2]
[353683875,1739988658244,-500.0,0.00011286,2]
[353683877,1739988658257,-500.0,0.00011286,2]
[353683880,1739988658268,-1229.33,0.00011286,2]
[353683882,1739988658280,-236.16466723,0.00011286,2]
[353683884,1739988658291,-711.44,0.00011286,2]
[353683886,1739988658303,-500.0,0.00011286,2]
[353683888,1739988658314,-500.0,0.00011286,2]
[353683890,1739988658324,-500.0,0.00011286,2]
[353683891,1739988658334,-566.68,0.00011286,2]
[353683893,1739988658345,-500.0,0.00011286,2]
[353683895,1739988658355,-500.0,0.00011286,2]
[353683897,1739988658366,-500.0,0.00011286,2]
[353683899,1739988658376,-595.26,0.00011286,2]
[353683901,1739988658386,-765.08,0.00011286,2]
[353683904,1739988658399,-769.93,0.00011286,2]
[353683905,1739988658409,-500.0,0.00011286,2]
[353683906,1739988658422,-1129.32,0.00011286,2]
[353683907,1739988658432,-500.0,0.00011286,2]
[353683908,1739988658442,-501.33360632,0.00011286,2]
[353683909,1739988658451,-500.0,0.00011286,2]
[353683910,1739988658462,-500.0,0.00011286,2]
[353683911,1739988658474,-500.0,0.00011286,2]
[353683912,1739988658483,-500.0,0.00011286,2]
[353683913,1739988658492,-500.0,0.00011286,2]
[353683914,1739988658502,-606.16,0.00011286,2]
[353683915,1739988658512,-500.0,0.00011286,2]
[353683916,1739988658522,-571.77,0.00011286,2]
[353683917,1739988658532,-500.0,0.00011286,2]
[353683918,1739988658542,-500.0,0.00011286,2]
[353683919,1739988658552,-500.0,0.00011286,2]
[353683920,1739988658562,-571.39,0.00011286,2]
[353683922,1739988658571,-500.0,0.00011286,2]
[353683924,1739988658581,-500.0,0.00011286,2]
[353683926,1739988658591,-503.76,0.00011286,2]
[353683928,1739988658601,-500.0,0.00011286,2]
[353683930,1739988658610,-287.72379163,0.00011286,2]
[353683932,1739988658620,-528.76,0.00011286,2]
[353683934,1739988658631,-500.0,0.00011286,2]
[353683936,1739988658641,-942.0,0.00011286,2]
[353683938,1739988658654,-520.07211211,0.00011286,2]
[353683940,1739988658669,-500.0,0.00011286,2]
[353683942,1739988658679,-833.72,0.00011286,2]
[353683944,1739988658689,-500.0,0.00011286,2]
[353683947,1739988658702,-500.0,0.00011286,2]
[353683948,1739988658712,-500.0,0.00011286,2]
[353683950,1739988658722,-500.0,0.00011286,2]
[353683953,1739988658733,-730.43,0.00011286,2]
[353683955,1739988658743,-500.0,0.00011286,2]
[353683957,1739988658754,-500.0,0.00011286,2]
[353683959,1739988658763,-500.0,0.00011286,2]
[353683960,1739988658772,-500.0,0.00011286,2]
[353683961,1739988658782,-500.0,0.00011286,2]
[353683962,1739988658791,-693.73,0.00011286,2]
[353683963,1739988658801,-500.0,0.00011286,2]
[353683964,1739988658810,-500.0,0.00011286,2]
[353683965,1739988658820,-584.83,0.00011286,2]
[353683966,1739988658830,-500.0,0.00011286,2]
[353683967,1739988658840,-500.0,0.00011286,2]
[353683969,1739988658849,-500.0,0.00011286,2]
[353683971,1739988658859,-500.0,0.00011286,2]
[353683973,1739988658868,-982.53,0.00011286,2]
[353683975,1739988658878,-541.39,0.00011286,2]
[353683977,1739988658887,-500.0,0.00011286,2]
[353683979,1739988658896,-500.0,0.00011286,2]
[353683981,1739988658905,-500.0,0.00011286,2]
[353683983,1739988658917,-500.0,0.00011286,2]
[353683985,1739988658927,-500.0,0.00011286,2]
[353683987,1739988658936,-500.0,0.00011286,2]
[353683988,1739988658946,-500.0,0.00011286,2]
[353683990,1739988658956,-435.82878026,0.00011286,2]
[353683992,1739988658966,-500.0,0.00011286,2]
[353683994,1739988658976,-500.0,0.00011286,2]
[353683996,1739988658986,-573.94,0.00011286,2]
[353683998,1739988658995,-500.0,0.00011286,2]
[353684000,1739988659005,-500.0,0.00011286,2]
[353684002,1739988659015,-1279.11,0.00011286,2]
[353684003,1739988659025,-500.0,0.00011286,2]
[353684005,1739988659035,-500.0,0.00011286,2]
[353684008,1739988659045,-500.0,0.00011286,2]
[353684009,1739988659055,-500.0,0.00011286,2]
[353684011,1739988659065,-500.0,0.00011286,2]
[353684013,1739988659075,-500.0,0.00011286,2]
[353684015,1739988659084,-612.17,0.00011286,2]
[353684017,1739988659094,-500.0,0.00011286,2]
[353684019,1739988659103,-661.08,0.00011286,2]
[353684021,1739988659113,-500.0,0.00011286,2]
[353684023,1739988659123,-500.0,0.00011286,2]
[353684025,1739988659132,-500.0,0.00011286,2]
[353684027,1739988659141,-500.0,0.00011286,2]
[353684029,1739988659151,-1129.51,0.00011286,2]
[353684031,1739988659162,-500.0,0.00011286,2]
[353684033,1739988659172,-500.0,0.00011286,2]
[353684034,1739988659181,-752.41,0.00011286,2]
[353684035,1739988659192,-582.36,0.00011286,2]
[353684036,1739988659202,-500.0,0.00011286,2]
[353684037,1739988659212,-500.0,0.00011286,2]
[353684038,1739988659222,-500.0,0.00011286,2]
[353684039,1739988659231,-1171.07,0.00011286,2]
[353684040,1739988659240,-500.0,0.00011286,2]
[353684041,1739988659250,-500.0,0.00011286,2]
[353684043,1739988659260,-500.0,0.00011286,2]
[353684045,1739988659270,-500.0,0.00011286,2]
[353684046,1739988659279,-645.38,0.00011286,2]
[353684048,1739988659288,-500.0,0.00011286,2]
[353684051,1739988659298,-1052.41,0.00011286,2]
[353684053,1739988659308,-534.14,0.00011286,2]
[353684054,1739988659318,-500.0,0.00011286,2]
[353684056,1739988659327,-500.0,0.00011286,2]
[353684058,1739988659337,-500.0,0.00011286,2]
[353684060,1739988659346,-502.85,0.00011286,2]
[353684062,1739988659355,-805.29,0.00011286,2]
[353684064,1739988659365,-500.0,0.00011286,2]
[353684066,1739988659375,-802.52,0.00011286,2]
[353684068,1739988659386,-500.0,0.00011286,2]
[353684070,1739988659396,-500.0,0.00011286,2]
[353684072,1739988659406,-500.0,0.00011286,2]
[353684074,1739988659416,-500.0,0.00011286,2]
[353684076,1739988659426,-1324.37,0.00011286,2]
[353684078,1739988659436,-509.85400476,0.00011286,2]
[353684080,1739988659445,-500.0,0.00011286,2]
[353684082,1739988659454,-500.0,0.00011286,2]
[353684084,1739988659464,-500.0,0.00011286,2]
[353684086,1739988659475,-500.0,0.00011286,2]
[353684088,1739988659485,-500.0,0.00011286,2]
[353684090,1739988659494,-580.35,0.00011286,2]
[353684092,1739988659504,-890.7,0.00011286,2]
[353684094,1739988659514,-500.0,0.00011286,2]
[353684096,1739988659523,-519.27543749,0.00011286,2]
[353684098,1739988659533,-500.0,0.00011286,2]
[353684100,1739988659542,-500.0,0.00011286,2]
[353684101,1739988659552,-500.0,0.00011286,2]
[353684103,1739988659562,-500.0,0.00011286,2]
[353684105,1739988659571,-500.0,0.00011286,2]
[353684107,1739988659581,-500.0,0.00011286,2]
[353684109,1739988659590,-624.18,0.00011286,2]
[353684111,1739988659600,-506.02,0.00011286,2]
[353684113,1739988659610,-591.17,0.00011286,2]
[353684115,1739988659619,-500.0,0.00011286,2]
[353684117,1739988659628,-500.0,0.00011286,2]
[353684119,1739988659638,-500.0,0.00011286,2]
[353684121,1739988659648,-500.0,0.00011286,2]
[353684123,1739988659661,-612.61,0.00011286,2]
[353684125,1739988659672,-500.0,0.00011286,2]
[353684127,1739988659682,-500.0,0.00011286,2]
[353684129,1739988659693,-998.34,0.00011286,2]
[353684131,1739988659702,-500.0,0.00011286,2]
[353684133,1739988659711,-1915.46,0.00011286,2]
[353684135,1739988659720,-500.0,0.00011286,2]
[353684137,1739988659730,-500.0,0.00011286,2]
[353684139,1739988659740,-255.94011883,0.00011286,2]
[353684141,1739988659749,-517.17,0.00011286,2]
[353684143,1739988659758,-500.0,0.00011286,2]